Cogmind - Beta 14 @@@ ROGUE MODE // 2024.08.30 @ 00:27:35 Player: Schmee Result: Destroyed by PP-S36(R) with Subdweller Laser Performance ------------- Evolutions (0) 0 Regions Visited (2) 400 Robots Destroyed (34) 170 Value Destroyed (729) 729 Prototype IDs (11) 220 Alien Tech Used (0) 0 Bonus (0) 0 TOTAL SCORE: 1519 Bonus ------- None Cogmind --------- Core Integrity 0/250 Matter 144/300 Energy 100/100 System Corruption 0% Temperature Cool (6) Movement Treading (240) Ox1 Location -10/Subcaves Parts ------- > --- POWER (1) -------- (None) > --- PROPULSION (2) --- Light Treads > --- UTILITY (2) ------ Large Storage Unit Makeshift Light Armor Plating > --- WEAPON (2) ------- Hammer > --- INVENTORY (15) --- Light Ion Engine Light Treads Compact Wheel Disposable Heat Sink High-capacity Matter Pod (58) Structural Scanner Seismic Detector Weapon Shielding Weapon Shielding Light Armor Plating Light Armor Plating Scrap Shield Power Bank Grenade Launcher Peak State ------------ > --- POWER ------------ Ion Engine > --- PROPULSION ------- Light Treads Light Treads > --- UTILITY ---------- Large Storage Unit Makeshift Light Armor Plating > --- WEAPON ----------- Small Laser Hammer > --- INVENTORY -------- Light Ion Engine Light Treads Compact Wheel High-capacity Matter Pod Structural Scanner Seismic Detector Weapon Shielding Weapon Shielding Light Armor Plating Light Armor Plating Power Bank Grenade Launcher [Rating: 12] Favorites ----------- Power Ion Engine Engine Ion Engine Power Core Light Nuclear Core Propulsion Light Treads Treads Light Treads Leg Aluminum Leg Utility Large Storage Unit Device Seismic Detector Storage Large Storage Unit Protection Light Armor Plating Weapon Assault Rifle Energy Gun Small Laser Ballistic Gun Assault Rifle Launcher Grenade Launcher Impact Weapon Hammer Build | -11 -10 -10 ------- Run | Yrd Mat Sub Slots Evolved . | . . . Power . | . . . Propulsion . | . . . Utility . | . . . Weapon . | . . . Parts Attached 30 | 1 15 14 Power 4 | . 3 1 Engine 3 | . 2 1 Core 1 | . 1 . Reactor . | . . . Propulsion 5 | . 4 1 Treads 5 | . 4 1 Leg . | . . . Wheel . | . . . Hover . | . . . Flight . | . . . Utility 10 | 1 3 6 Device 4 | 1 . 3 Storage 2 | . 2 . Processor . | . . . Hackware . | . . . Protection 4 | . 1 3 Artifact . | . . . Weapon 11 | . 5 6 Energy Gun 2 | . 1 1 Energy Cannon . | . . . Ballistic Gun 3 | . 2 1 Ballistic Cannon . | . . . Launcher 3 | . 1 2 Special Weapon . | . . . Impact Weapon 3 | . 1 2 Slashing Weapon . | . . . Piercing Weapon . | . . . Special Melee Weapon . | . . . Unidentified Prototypes . | . . . Parts Lost 9 | . 2 7 Power 2 | . . 2 Propulsion 3 | . 1 2 Utility 1 | . . 1 Weapon 3 | . 1 2 Highest Loss Streak 7 | . 2 7 To Critical Strikes . | . . . Average Slot Usage (%) 99 | . 99 98 Engine 12 | . 11 13 Core 1 | . 2 . Treads 26 | . 26 27 Device 5 | . 3 12 Storage 14 | . 14 14 Protection 8 | . 10 1 Energy Gun 9 | . 10 6 Ballistic Gun 13 | . 13 12 Launcher 3 | . 3 4 Impact Weapon 1 | . . 4 Peak Build Rating 12 | 7 10 12 Average Rating 8 | 6 8 8 On Entrance 7 | 6 7 8 Naked Turns . | . . . Heaviest Build 32 | 13 32 32 Greatest Support 40 | 20 40 40 Greatest Overweight (x) 1 | . . 1 Average Overweight (x) . | . . . Largest Inventory Capacity 15 | 8 15 15 Average Capacity 14 | 8 14 15 Most Carried 15 | 6 15 15 Average Carried 13 | 6 13 14 Final Capacity 15 | 8 15 15 Final Carried 15 | 6 15 15 Class Distribution -------------------- 100% | Mutant Dominant Class ---------------- Mutant | -10/Materials Mutant | -10/Subcaves Resources | -11 -10 -10 ----------- Run | Yrd Mat Sub Matter Collected 782 | 240 508 34 Remotely . | . . . Salvage Created 1162 | 107 904 151 Parts 74 | 6 61 7 Haulers Intercepted 2 | . 2 . Recyclers Shooed 3 | 1 2 . Parts Field Recycled . | . . . Retrieved Matter . | . . . Parts Self-Destructed 5 | . . 5 Prevented . | . . . Kills | -11 -10 -10 ------- Run | Yrd Mat Sub Combat Hostiles Destroyed 22 | . 15 7 Melee 1 | . . 1 Guns 15 | . 15 . AOE 5 | . . 5 Classes Destroyed 11 | 2 6 3 Worker 1 | . 1 . Tunneler 1 | 1 . . Hauler 2 | . 2 . Recycler 4 | 1 3 . Operator 1 | . 1 . Watcher 3 | . 3 . Swarmer 7 | . 3 4 Grunt 12 | . 12 . Sentry 1 | . . 1 Artisan 1 | . . 1 Subdweller 2 | . . 2 Best Kill Streak 5 | 2 5 3 Combat Bots Only 3 | . 3 3 Max Kills in Single Turn 3 | 1 2 3 Gunslinging 1 | . 1 . Exploded 2 | . . 2 Melee 1 | . . 1 Uniques/NPCs Destroyed . | . . . Combat | -11 -10 -10 -------- Run | Yrd Mat Sub Hostile Shots Fired 117 | . 69 48 Missed 24 | . 16 8 Damage Taken 1517 | . 586 931 Core 252 | . 61 191 Absorbed by Shields . | . . . Regen/Repaired (Parts) 137 | . 137 . Core Remaining (%) 100 | 100 . . Volleys Fired 78 | 5 62 11 Largest 2 | 2 2 2 Hottest 60 | 40 60 60 Shots Fired 148 | 10 122 16 Gun 140 | 10 120 10 Cannon . | . . . Launcher 8 | . 2 6 Special . | . . . Kinetic 115 | 10 100 5 Thermal 25 | . 20 5 Explosive 8 | . 2 6 Electromagnetic . | . . . Robot Hit Streak 15 | 3 15 3 Robot Miss Streak 3 | 2 3 1 Penetration Max . | . . . Secondary Targets 6 | . 6 . Max Gunslinging Chain 1 | . 1 . Shots Hit Robots 101 | 7 76 18 Core Hits 51 | 3 38 10 Critical Kills 2 | . 2 . Critical Parts Destroyed 1 | . . 1 Critical Strikes 4 | . 2 2 Destroy 2 | . 2 . Smash 2 | . . 2 Melee Attacks 21 | . 4 17 Impact 21 | . 4 17 Slashing . | . . . Piercing . | . . . Sneak Attacks . | . . . Combat Hostiles . | . . . Follow-up Attacks . | . . . Damage Inflicted 1676 | 93 1036 547 Guns 1151 | 93 984 74 Cannons . | . . . Explosions 241 | . 24 217 Melee 256 | . . 256 Ramming 28 | . 28 . Kinetic 927 | 93 813 21 Thermal 224 | . 171 53 Explosive 241 | . 24 217 Electromagnetic . | . . . Impact 256 | . . 256 Slashing . | . . . Piercing . | . . . Highest Corruption . | . . . Average Corruption . | . . . Corruption Purged . | . . . Corruption Blocked . | . . . Overload Shots . | . . . Overflow Damage 24 | . . 24 Projectiles . | . . . Explosions . | . . . Melee 24 | . . 24 Knockbacks 1 | . . 1 Impact 1 | . . 1 Kinetic . | . . . Secondary . | . . . Self-Inflicted Damage 26 | . . 26 Shots 1 | . . 1 Rammed 4 | . 4 . Targets Rammed 4 | . 4 . Kicked . | . . . Crushed . | . . . Highest Temperature 174 | 6 174 . Average Temperature 37 | 6 38 . Received Heat Transfer 486 | . 273 213 Siege Activations . | . . . Robots Corrupted 1 | . . 1 Combat Hostiles 1 | . . 1 Parts Fried 1 | . . 1 Impact Corruptions 1 | . . 1 Robots Melted . | . . . Combat Hostiles . | . . . Parts Melted . | . . . Heat Transferred 525 | . 400 125 Parts Sabotaged . | . . . Parts Stolen . | . . . Parts Stripped . | . . . Power Chain Reactions . | . . . Alert | -11 -10 -10 ------- Run | Yrd Mat Sub Peak Influence 245 | 10 245 . Initial 6 | . 6 . Average 70 | 6 71 . Maximum Alert Level 1 | . 1 . Low Security (%) 96 | 100 96 . Level 1 3 | . 3 . Level 2 . | . . . Level 3 . | . . . Level 4 . | . . . Level 5 . | . . . High Security . | . . . Max Security . | . . . Squads Dispatched 3 | . 3 . Investigation 1 | . 1 . Extermination . | . . . Reinforcement 2 | . 2 . Assault . | . . . Garrison . | . . . Intercept . | . . . Searches Triggered . | . . . Construction Impeded . | . . . Haulers Reinforced . | . . . Active Scanning Responses . | . . . Cargo Convoy Interrupts . | . . . Stealth | -11 -10 -10 --------- Run | Yrd Mat Sub Distress Signals 1 | . 1 . Communications Jammed . | . . . Distress Signals . | . . . Times Spotted 35 | . 28 7 Peak Tracking Total 3 | . 3 3 Tactical Retreats . | . . . Traps | -11 -10 -10 ------- Run | Yrd Mat Sub Traps Triggered . | . . . Indirectly . | . . . Trap Hack Attempts . | . . . Triggered . | . . . Disarmed 6 | . 6 . Reprogrammed . | . . . Reused . | . . . Traps Extracted . | . . . Installed . | . . . Triggered . | . . . Machines | -11 -10 -10 ---------- Run | Yrd Mat Sub Machines Disabled 1 | . . 1 Max in Single Turn 1 | . . 1 Machines Repaired . | . . . Machines Dismantled . | . . . Machines Sabotaged . | . . . Overloaded Fab Kills . | . . . Hacking | -11 -10 -10 --------- Run | Yrd Mat Sub Machines Accessed 9 | . 7 2 Terminals 6 | . 6 . Fabricators . | . . . Repair Stations 1 | . 1 . Recycling Units . | . . . Scanalyzers . | . . . Garrison Access . | . . . Total Hacks 22 | . 18 4 Successful 12 | . 8 4 Failed 9 | . 9 . Catastrophic 1 | . 1 . Database Lockouts 1 | . 1 . Manual 10 | . 10 . Terminals 15 | . 15 . Fabricators . | . . . Repair Stations 3 | . 3 . Recycling Units . | . . . Scanalyzers . | . . . Garrison Access . | . . . Terminal Hacks 8 | . 4 4 Record 3 | . . 3 Part Schematic 1 | . 1 . Locate Traps 1 | . 1 . Disarm Traps 1 | . 1 . Hauler Manifests 1 | . 1 . Derelict Proto ID Bank 1 | . . 1 Fabricator Hacks . | . . . Repair Station Hacks 2 | . 2 . Scan Component 1 | . 1 . Repair 1 | . 1 . Recycling Unit Hacks . | . . . Scanalyzer . | . . . Garrison Access Hacks . | . . . Unauthorized Hacks 2 | . 2 . Terminals 2 | . 2 . Assimilate 1 | . 1 . Botnet 1 | . 1 . Fabricators . | . . . Repair Stations . | . . . Recycling Units . | . . . Scanalyzers . | . . . Garrison Access . | . . . Data Cores Recovered 1 | . 1 . Used . | . . . Hacking Detections 6 | . 6 . Full Trace Events 1 | . 1 . Feedback Events . | . . . Feedback Blocked . | . . . Robot Schematics Acquired . | . . . Robots Built . | . . . Authchips . | . . . Time . | . . . Total Robot Build Rating . | . . . Part Schematics Acquired 1 | . 1 . Parts Built . | . . . Authchips . | . . . Time . | . . . Total Part Build Rating . | . . . Parts Repaired 1 | . 1 . Time 13 | . 13 . Parts Recycled . | . . . Recycled Matter . | . . . Retrieved Matter . | . . . Retrieved Components . | . . . Parts Scanalyzed . | . . . Part Schematics Acquired . | . . . Parts Damaged . | . . . Bothacking | -11 -10 -10 ------------ Run | Yrd Mat Sub Used RIF Installer . | . . . Robots Hacked . | . . . Non-combat . | . . . Combat . | . . . Robot Hacks Applied . | . . . Relay Couplers Released . | . . . Fabnet Peak Effective % . | . . . Robots Rewired . | . . . Allies Hacked . | . . . Hacks Repelled . | . . . Allies | -11 -10 -10 -------- Run | Yrd Mat Sub Total Allies 1 | . 1 . Largest Group 1 | . 1 . Highest-Rated Group 10 | . 10 . Highest-Rated Ally 10 | . 10 . Total Orders . | . . . Ally Attacks . | . . . Total Damage . | . . . Kills . | . . . Allies Corrupted . | . . . Allies Melted . | . . . Intel | -11 -10 -10 ------- Run | Yrd Mat Sub Robot Analysis Total . | . . . Derelict Logs Recovered . | . . . Drone Launches . | . . . Drone Recoveries . | . . . Exploration | -11 -10 -10 ------------- Run | Yrd Mat Sub Turns Passed 2942 | 37 2130 775 Spaces Moved 1574 | 18 1145 411 Core . | . . . Treads 1513 | . 1102 411 Legs 61 | 18 43 . Wheels . | . . . Hover . | . . . Flight . | . . . Fastest Speed 120 | 120 120 160 Average Speed 158 | 120 158 161 Slowest Speed 240 | 120 160 240 Overloaded Moves . | . . . Propulsion Burnouts . | . . . Robots Hopped . | . . . Cave-ins Triggered . | . . . Exploration Rate (%) 40 | 2 96 23 Regions Visited 2 Branch Regions 1 Pre-discovered Areas . | . . . Known Exits Taken . | . . . Unknown Exits Taken 2 | 1 1 . Scrap Searched . | . . . Spaces Dug 3 | . 3 . Terrain Destroyed 26 | . 15 11 Melee 3 | . 3 . Projectile . | . . . AOE 23 | . 12 11 Terrain Rammed . | . . . Walls Destroyed . | . . . Machines Disabled . | . . . Actions | -11 -10 -10 --------- Run | Yrd Mat Sub Total 1825 | 23 1328 474 Wait 95 | . 78 17 Move 1572 | 17 1144 411 Hop . | . . . Pick Up 17 | . 14 3 Fast Attach 2 | 1 1 . Attach 8 | . 4 4 Detach . | . . . Swap 20 | . 10 10 Drop 8 | . 7 1 Fire 78 | 5 62 11 Melee 21 | . 4 17 Ram . | . . . Kick . | . . . Crush 4 | . 4 . Escape Stasis . | . . . Rewire . | . . . Trap . | . . . Miscellaneous . | . . . Route ------- -11/Scrapyard -10/Materials (discovered 6 exits: [*Mat x3] / [*Min x2] / *Sub) -10/Subcaves History --------- Turn | Location | Event 1 | -11/Scrapyard | Discovered new exit (range 3) 38 | -11/Scrapyard | Entered Materials 65 | -10/Materials | Discovered new exit (range 13) 268 | -10/Materials | Discovered new exit (range 3) 302 | -10/Materials | Build established: Mutant 430 | -10/Materials | Central database locked down 534 | -10/Materials | Discovered new exit (range 13) 866 | -10/Materials | Discovered new exit (range 13) 1098 | -10/Materials | Repaired Lgt. Treads 1205 | -10/Materials | Discovered new exit (range 10) 2159 | -10/Materials | Discovered new exit (range 4) 2168 | -10/Materials | Entered Subcaves 2295 | -10/Subcaves | Visited 4L-MR0's lab 2312 | -10/Subcaves | Found Power Bank 2724 | -10/Subcaves | Visited Clippyterm 2728 | -10/Subcaves | Learned Research machine intel 2877 | -10/Subcaves | Core integrity fell below 50% 2938 | -10/Subcaves | Core integrity fell below 20% 2943 | -10/Subcaves | Destroyed by PP-S36(R) with Subdweller Laser Last Messages --------------- 02873_ LB-TLG(R) knocked back. 02875_ ET-X6T(R) suffers critical hit (Smash). 02878_ ET-X6T(R) destroyed. 02879_ 7P-LEF(O) collects matter. 02884_ LB-TLG(R) affixes Scrap Shield Fragment to Scrap Shield. 02888_ 7P-LEF(O) puts together Mak. Light Armor Plating. 02888_ Subatomizers dissect the Disposable Heat Sink. 02889_ Lgt. Treads destroyed. 02890_ LB-TLG(R) suffers critical hit (Smash). 02890_ Destroyed Sub. Beam Cannon. 02890_ LB-TLG(R) system corrupted by crushing effect. 02891_ LB-TLG(R) system terminally corrupted. 02891_ Disposable Heat Sink fried. 02891_ 7P-LEF(O) collects matter. 02900_ Acquired Scrap Shield. 02902_ Acquired Disposable Heat Sink. 02916_ Lgt. Treads destroyed. 02922_ PP-S36(R) affixes Scrap Shield Fragment to Scrap Shield. 02933_ Sml. Laser destroyed. 02939_ Ion Engine destroyed. Map ----- +----------------------------------------------------+ | ????????## ### #????????????????? | | ????????# ## ##???????????????? | | ????????# ##??????????????? | | ????????### ##?????????????? | | ??????????## ##### #?????????????? | | ???????????## #???# ###?????????????? | | ????????????# ### ###### ##???????????????? | | ????????????# #?### ##???????????????? | | ?????????#### ### #???????????????? | | ???????? ## ##???????????????? | | ???????? #### ##????????????????? | | ???????? #??###?????????????????? | | ???????? ## #???##?????????????????? | | ??????????####### #### #?????????????????? | | ????????????????# ####??????????????? | | ?????????????# #??????????????? | | ?????????# ## ##?????????????? | | ?????????## ?# #?????????????? | | ??????????### #########?# #?????????????? | | ????????????#???????????# #?????????????? | | ??????????????????????### ##?????????????? | | ?????????????????????## ###??????????????? | | ?????????????????????# #????????????????? | | ?????????????# ???####### ##???????????????? | | ??????????? ## ## ####R #???????????????? | | ??????????"" " @ #???????????????? | | ??????????"" " " ##??????????????? | | ?????????? " "#" "]## #??????????????? | | ??????????????# "#### #??????????????? | | ?????????????#" ##??##&& ###??????????????? | | ???????????? ????# ##????????????????? | | ???????????### #?????# ##?????????????????? | | ?????????????# ??????## ##??????????????????? | | ???????????? *????????#####???????????????????? | | ???????????? ?????????????????????????????????? | | ???????????? ??????????????????????????????????? | | ???????????????????????????????????????????????? | | ???????????????????????????????????????????????? | | ???????????????????????????????????????????????? | | ???????????????????????????????????????????????? | | ???????????????????????????????????????????????? | | ???????????????????????????????????????????????? | | ???????????????????????????????????????????????? | | ???????????????????????????????????????????????? | | ???????????????????????????????????????????????? | | ???????????????????????????????????????????????? | | ???????????????????????????????????????????????? | | ???????????????????????????????????????????????? | | ???????????????????????????????????????????????? | | ???????????????????????????????????????????????? | +----------------------------------------------------+ Best States ------------- Heat Dissipation 25 Energy Generation 14 Energy Capacity 250 Matter Stores 300 Matter Capacity 300 Sight Range 16 Terrain Scan Density 10 Armor Coverage 150 Evasion (%) 55 Recoil Reduction 2 Item Schematics ----------------- Hcp. Storage Unit | -10/Materials | Hacked Robot Schematics ------------------ None Fabricated ------------ Nothing Alien Tech Used ----------------- None Achievements -------------- None Challenges ------------ None Game ------ Seed BarrageMetaSlayer Manual? 0 Play Time 00:18:05 Cumulative 158.6 hours Start 2024.08.30 @ 00:10:21 End 2024.08.30 @ 00:27:35 Sessions 1 Manual Loads 0 Difficulty Rogue Special Mode None Game No. 79 Rogue 77 Adventurer 0 Explorer 2 Win Type - Total 9 Types 9/0/0/0/0/0/0/0/0 Lore% 57 Gallery% 70 Achievement% 57 Wizard Run 0 Options --------- Layout 0 ASCII 0 Keyboard 1 Movement Numpad Keybinds 0 Fullscreen 1 Font 24/Smallcaps Map View 76x50 Zoom Use 0% Tactical HUD 1 Map Filters NONE Filters NONE Steam 1 RUN: 775e70a7-8adb-4b3f-b280-c13ca39be229